[Event "Titled Tuesday Blitz May 10 Early 2022"]
[White "Mikhalsky, Vladimir"]
[Black "Dang, Hoang Son"]
[WhiteFideId "14144352"]
[BlackFideId "12402435"]
[WhiteElo "2301"]
[BlackElo "2252"]
[Result "0-1"]
[Round "10"]
[TimeControl "180+1"]
[Date "2022.05.11"]
[WhiteClock "0:00:38"]
[BlackClock "0:01:24"]

1. d4 {[%clk 0:03:00]}  Nf6 {[%clk 0:03:00]} 2. c4 {[%clk 0:02:59]}  g6 {[%clk 0:03:00]} 3. f3 {[%clk 0:03:00]}  Bg7 {[%clk 0:03:00]} 4. e4 {[%clk 0:02:59]}  O-O {[%clk 0:03:01]} 5. Nc3 {[%clk 0:02:59]}  d6 {[%clk 0:03:02]} 6. Be3 {[%clk 0:02:59]}  c5 {[%clk 0:03:03]} 7. Nge2 {[%clk 0:02:57]}  Nc6 {[%clk 0:03:01]} 8. d5 {[%clk 0:02:57]}  Ne5 {[%clk 0:03:00]} 9. Nc1 {[%clk 0:02:50]}  e6 {[%clk 0:02:57]} 10. Qd2 {[%clk 0:02:50]}  exd5 {[%clk 0:02:56]} 11. cxd5 {[%clk 0:02:50]}  a6 {[%clk 0:02:57]} 12. a4 {[%clk 0:02:50]}  Bd7 {[%clk 0:02:57]} 13. h3 {[%clk 0:02:21]}  b5 {[%clk 0:02:54]} 14. axb5 {[%clk 0:02:21]}  axb5 {[%clk 0:02:54]} 15. Rxa8 {[%clk 0:02:21]}  Qxa8 {[%clk 0:02:55]} 16. Nxb5 {[%clk 0:02:16]}  Rb8 {[%clk 0:02:47]} 17. Nxd6 {[%clk 0:02:07]}  Qa1 {[%clk 0:02:47]} 18. b3 {[%clk 0:02:00]}  Rxb3 {[%clk 0:02:41]} 19. Be2 {[%clk 0:01:37]}  Rb2 {[%clk 0:02:19]} 20. Qd1 {[%clk 0:01:26]}  Ba4 {[%clk 0:02:19]} 21. Nb3 {[%clk 0:01:15]}  Qxd1+ {[%clk 0:01:43]} 22. Bxd1 {[%clk 0:01:14]}  Nd3+ {[%clk 0:01:44]} 23. Kf1 {[%clk 0:01:12]}  Bxb3 {[%clk 0:01:43]} 24. Bxb3 {[%clk 0:01:09]}  Rxb3 {[%clk 0:01:44]} 25. Ke2 {[%clk 0:01:09]}  Nh5 {[%clk 0:01:31]} 26. Rd1 {[%clk 0:00:50]}  Ndf4+ {[%clk 0:01:27]} 27. Bxf4 {[%clk 0:00:39]}  Nxf4+ {[%clk 0:01:27]} 28. Kf2 {[%clk 0:00:40]}  Rb2+ {[%clk 0:01:26]} 29. Kg3 {[%clk 0:00:39]}  Be5 {[%clk 0:01:24]} 30. Nc4 {[%clk 0:00:38]}  Rxg2+ {[%clk 0:01:23]} 31. Kh4 {[%clk 0:00:38]}  g5# {[%clk 0:01:24]} 0-1


[Site "https://www.chess.com"]

[Event "Titled Tuesday Blitz May 10 Early 2022"]
[White "Miszler, Levente"]
[Black "Piliczewski, Bogusz"]
[WhiteFideId "763276"]
[BlackFideId "1104144"]
[WhiteElo "1966"]
[BlackElo "1896"]
[Result "1-0"]
[Round "10"]
[TimeControl "180+1"]
[Date "2022.05.11"]
[WhiteClock "0:00:19"]
[BlackClock "0:00:04"]

1. Nf3 {[%clk 0:03:00]}  d5 {[%clk 0:02:57]} 2. c4 {[%clk 0:03:00]}  Nf6 {[%clk 0:02:57]} 3. e3 {[%clk 0:02:51]}  c6 {[%clk 0:02:56]} 4. b3 {[%clk 0:02:47]}  Bg4 {[%clk 0:02:56]} 5. Bb2 {[%clk 0:02:47]}  e6 {[%clk 0:02:56]} 6. h3 {[%clk 0:02:45]}  Bh5 {[%clk 0:02:55]} 7. g4 {[%clk 0:02:38]}  Bg6 {[%clk 0:02:55]} 8. Ne5 {[%clk 0:02:39]}  Be4 {[%clk 0:02:23]} 9. f3 {[%clk 0:02:39]}  Bxb1 {[%clk 0:02:23]} 10. Rxb1 {[%clk 0:02:34]}  Nfd7 {[%clk 0:02:19]} 11. Bg2 {[%clk 0:02:01]}  Qh4+ {[%clk 0:02:16]} 12. Kf1 {[%clk 0:02:01]}  Bd6 {[%clk 0:02:06]} 13. f4 {[%clk 0:01:56]}  O-O {[%clk 0:01:47]} 14. Nf3 {[%clk 0:01:54]}  Qe7 {[%clk 0:01:44]} 15. h4 {[%clk 0:01:51]}  f5 {[%clk 0:01:38]} 16. g5 {[%clk 0:01:51]}  dxc4 {[%clk 0:01:27]} 17. bxc4 {[%clk 0:01:50]}  e5 {[%clk 0:01:26]} 18. c5 {[%clk 0:01:47]}  Bxc5 {[%clk 0:01:19]} 19. Nxe5 {[%clk 0:01:30]}  Na6 {[%clk 0:01:04]} 20. Qb3+ {[%clk 0:01:22]}  Kh8 {[%clk 0:01:03]} 21. Qxb7 {[%clk 0:01:22]}  Nxe5 {[%clk 0:00:52]} 22. Qxe7 {[%clk 0:01:22]}  Bxe7 {[%clk 0:00:50]} 23. Bxe5 {[%clk 0:01:22]}  Nb4 {[%clk 0:00:44]} 24. h5 {[%clk 0:01:20]}  Nd3 {[%clk 0:00:38]} 25. Bc3 {[%clk 0:01:08]}  Rac8 {[%clk 0:00:35]} 26. h6 {[%clk 0:01:08]}  Rf7 {[%clk 0:00:18]} 27. hxg7+ {[%clk 0:00:42]}  Rxg7 {[%clk 0:00:18]} 28. Bxc6 {[%clk 0:00:38]}  Bc5 {[%clk 0:00:09]} 29. Bd5 {[%clk 0:00:32]}  Bb6 {[%clk 0:00:08]} 30. Bf6 {[%clk 0:00:19]}  Rc1+ {[%clk 0:00:04]} 31. Rxc1 {[%clk 0:00:18]}  Nxc1 {[%clk 0:00:04]} 32. g6 {[%clk 0:00:19]} 1-0


[Site "https://www.chess.com"]

[Event "Titled Tuesday Blitz May 10 Early 2022"]
[White "Molina, Roberto Junio Brito"]
[Black "Babazada, Khazar"]
[WhiteFideId "2109450"]
[BlackFideId "13413554"]
[WhiteElo "2432"]
[BlackElo "2406"]
[Result "1-0"]
[Round "10"]
[TimeControl "180+1"]
[Date "2022.05.10"]
[WhiteClock "0:00:19"]
[BlackClock "0:00:36"]

1. d4 {[%clk 0:03:00]}  Nf6 {[%clk 0:03:00]} 2. c4 {[%clk 0:03:00]}  g6 {[%clk 0:02:59]} 3. Nc3 {[%clk 0:03:00]}  Bg7 {[%clk 0:02:59]} 4. e4 {[%clk 0:02:59]}  d6 {[%clk 0:03:00]} 5. f3 {[%clk 0:02:59]}  O-O {[%clk 0:03:00]} 6. Be3 {[%clk 0:02:59]}  e5 {[%clk 0:02:59]} 7. d5 {[%clk 0:02:58]}  a5 {[%clk 0:03:00]} 8. Qd2 {[%clk 0:02:58]}  Na6 {[%clk 0:03:00]} 9. Bd3 {[%clk 0:02:58]}  Nc5 {[%clk 0:02:59]} 10. Bc2 {[%clk 0:02:58]}  c6 {[%clk 0:02:57]} 11. Nge2 {[%clk 0:02:56]}  cxd5 {[%clk 0:02:32]} 12. cxd5 {[%clk 0:02:55]}  Bd7 {[%clk 0:02:33]} 13. a4 {[%clk 0:02:48]}  Ne8 {[%clk 0:02:33]} 14. O-O {[%clk 0:02:46]}  f5 {[%clk 0:02:31]} 15. exf5 {[%clk 0:02:40]}  gxf5 {[%clk 0:02:32]} 16. f4 {[%clk 0:02:40]}  Qb6 {[%clk 0:02:25]} 17. fxe5 {[%clk 0:02:35]}  dxe5 {[%clk 0:02:25]} 18. Kh1 {[%clk 0:02:35]}  Nd6 {[%clk 0:02:25]} 19. b3 {[%clk 0:02:33]}  Rae8 {[%clk 0:02:23]} 20. Rae1 {[%clk 0:02:31]}  Qb4 {[%clk 0:02:18]} 21. Bh6 {[%clk 0:02:25]}  f4 {[%clk 0:02:14]} 22. Bxg7 {[%clk 0:02:24]}  Kxg7 {[%clk 0:02:15]} 23. Qd1 {[%clk 0:02:17]}  Rf6 {[%clk 0:02:00]} 24. Qa1 {[%clk 0:02:08]}  Bf5 {[%clk 0:01:52]} 25. Bxf5 {[%clk 0:01:33]}  Rxf5 {[%clk 0:01:49]} 26. Nc1 {[%clk 0:00:58]}  Kg8 {[%clk 0:01:21]} 27. Re2 {[%clk 0:00:52]}  e4 {[%clk 0:01:18]} 28. Qb2 {[%clk 0:00:45]}  Qd4 {[%clk 0:01:13]} 29. Rd1 {[%clk 0:00:42]}  Qf6 {[%clk 0:01:13]} 30. Qd2 {[%clk 0:00:40]}  Rh5 {[%clk 0:01:13]} 31. Qd4 {[%clk 0:00:35]}  Qh6 {[%clk 0:01:13]} 32. h3 {[%clk 0:00:27]}  Nf5 {[%clk 0:00:56]} 33. Qxc5 {[%clk 0:00:25]}  Ng3+ {[%clk 0:00:57]} 34. Kg1 {[%clk 0:00:25]}  Nxe2+ {[%clk 0:00:57]} 35. N1xe2 {[%clk 0:00:26]}  f3 {[%clk 0:00:58]} 36. Ng3 {[%clk 0:00:22]}  Rg5 {[%clk 0:00:51]} 37. Ncxe4 {[%clk 0:00:19]}  Rxe4 {[%clk 0:00:45]} 38. Qc8+ {[%clk 0:00:19]}  Kg7 {[%clk 0:00:43]} 39. Nxe4 {[%clk 0:00:19]}  Rxg2+ {[%clk 0:00:41]} 40. Kf1 {[%clk 0:00:19]}  Qe3 {[%clk 0:00:38]} 41. Qc3+ {[%clk 0:00:18]}  Qxc3 {[%clk 0:00:35]} 42. Nxc3 {[%clk 0:00:19]}  Rh2 {[%clk 0:00:36]} 43. Rd3 {[%clk 0:00:19]} 1-0


[Site "https://www.chess.com"]

[Event "Titled Tuesday Blitz May 10 Early 2022"]
[White "Morefield, Jason"]
[Black "Vusatiuk, Vladimir"]
[WhiteFideId "30920825"]
[BlackFideId "14118610"]
[WhiteElo "2171"]
[BlackElo "2157"]
[Result "1-0"]
[Round "10"]
[TimeControl "180+1"]
[Date "2022.05.11"]
[WhiteClock "0:00:20"]
[BlackClock "0:00:17"]

1. e4 {[%clk 0:03:00]}  f5 {[%clk 0:03:00]} 2. exf5 {[%clk 0:03:00]}  Kf7 {[%clk 0:03:00]} 3. Nf3 {[%clk 0:02:59]}  Nf6 {[%clk 0:02:51]} 4. d4 {[%clk 0:02:59]}  d5 {[%clk 0:02:47]} 5. Bd3 {[%clk 0:02:58]}  c5 {[%clk 0:02:46]} 6. dxc5 {[%clk 0:02:54]}  Nc6 {[%clk 0:02:43]} 7. O-O {[%clk 0:02:52]}  Nb4 {[%clk 0:02:41]} 8. Bf4 {[%clk 0:02:34]}  Qa5 {[%clk 0:02:24]} 9. Nc3 {[%clk 0:02:01]}  Qxc5 {[%clk 0:02:19]} 10. Re1 {[%clk 0:01:57]}  Kg8 {[%clk 0:01:58]} 11. Qd2 {[%clk 0:01:22]}  Bd7 {[%clk 0:01:42]} 12. Rad1 {[%clk 0:01:13]}  Rd8 {[%clk 0:01:38]} 13. Be5 {[%clk 0:01:09]}  Qc8 {[%clk 0:01:30]} 14. Nd4 {[%clk 0:00:53]}  Nc6 {[%clk 0:01:20]} 15. Bxf6 {[%clk 0:00:53]}  exf6 {[%clk 0:01:11]} 16. Ne6 {[%clk 0:00:53]}  Re8 {[%clk 0:01:12]} 17. Nxd5 {[%clk 0:00:51]}  Ne5 {[%clk 0:01:01]} 18. Be4 {[%clk 0:00:39]}  Bxe6 {[%clk 0:00:59]} 19. fxe6 {[%clk 0:00:39]}  Bc5 {[%clk 0:00:49]} 20. b4 {[%clk 0:00:33]}  Bb6 {[%clk 0:00:35]} 21. e7 {[%clk 0:00:23]}  Kf7 {[%clk 0:00:30]} 22. Nxb6 {[%clk 0:00:21]}  axb6 {[%clk 0:00:30]} 23. Bd5+ {[%clk 0:00:22]}  Kg6 {[%clk 0:00:28]} 24. f4 {[%clk 0:00:22]}  Ng4 {[%clk 0:00:24]} 25. Be6 {[%clk 0:00:20]}  Qc7 {[%clk 0:00:18]} 26. Qd3+ {[%clk 0:00:20]}  Kh6 {[%clk 0:00:16]} 27. Qh3+ {[%clk 0:00:19]}  Kg6 {[%clk 0:00:16]} 28. Qxg4+ {[%clk 0:00:19]}  Kh6 {[%clk 0:00:17]} 29. Qh4+ {[%clk 0:00:19]}  Kg6 {[%clk 0:00:17]} 30. f5# {[%clk 0:00:20]} 1-0


[Site "https://www.chess.com"]

[Event "Titled Tuesday Blitz May 10 Early 2022"]
[White "Norowitz, Yaacov"]
[Black "Lohani, Sujana"]
[WhiteFideId "2024799"]
[BlackFideId "12311987"]
[WhiteElo "2412"]
[BlackElo "1691"]
[Result "1-0"]
[Round "10"]
[TimeControl "180+1"]
[Date "2022.05.11"]
[WhiteClock "0:02:57"]
[BlackClock "0:01:30"]

1. d4 {[%clk 0:02:59]}  Nf6 {[%clk 0:02:52]} 2. Nf3 {[%clk 0:02:58]}  e6 {[%clk 0:02:48]} 3. e3 {[%clk 0:02:59]}  b6 {[%clk 0:02:48]} 4. Bd3 {[%clk 0:02:59]}  Bb7 {[%clk 0:02:47]} 5. Nbd2 {[%clk 0:03:00]}  Be7 {[%clk 0:02:44]} 6. O-O {[%clk 0:03:01]}  d5 {[%clk 0:02:44]} 7. Ne5 {[%clk 0:03:01]}  O-O {[%clk 0:02:43]} 8. f4 {[%clk 0:03:02]}  c5 {[%clk 0:02:39]} 9. c3 {[%clk 0:03:02]}  Nbd7 {[%clk 0:02:35]} 10. Qf3 {[%clk 0:03:02]}  cxd4 {[%clk 0:02:24]} 11. exd4 {[%clk 0:03:02]}  Rc8 {[%clk 0:02:20]} 12. g4 {[%clk 0:03:01]}  Nxe5 {[%clk 0:02:14]} 13. fxe5 {[%clk 0:03:01]}  Nd7 {[%clk 0:02:05]} 14. Qh3 {[%clk 0:03:01]}  g6 {[%clk 0:01:55]} 15. Qh6 {[%clk 0:02:59]}  f6 {[%clk 0:01:50]} 16. Bxg6 {[%clk 0:02:59]}  hxg6 {[%clk 0:01:47]} 17. Qxg6+ {[%clk 0:03:00]}  Kh8 {[%clk 0:01:47]} 18. Rf3 {[%clk 0:03:00]}  Rf7 {[%clk 0:01:30]} 19. Rh3+ {[%clk 0:02:57]} 1-0


[Site "https://www.chess.com"]

[Event "Titled Tuesday Blitz May 10 Early 2022"]
[White "Ovezdurdyyeva, Jemal"]
[Black "Cramling Bellon, Anna"]
[WhiteFideId "14001888"]
[BlackFideId "32009232"]
[WhiteElo "1946"]
[BlackElo "1905"]
[Result "1-0"]
[Round "10"]
[TimeControl "180+1"]
[Date "2022.05.11"]
[WhiteClock "0:00:33"]
[BlackClock "0:00:02"]

1. e4 {[%clk 0:03:00]}  c5 {[%clk 0:02:59]} 2. Nf3 {[%clk 0:03:00]}  e6 {[%clk 0:02:52]} 3. d4 {[%clk 0:03:00]}  cxd4 {[%clk 0:02:51]} 4. Nxd4 {[%clk 0:03:01]}  Nc6 {[%clk 0:02:51]} 5. Nb5 {[%clk 0:02:58]}  d6 {[%clk 0:02:36]} 6. Bf4 {[%clk 0:02:52]}  e5 {[%clk 0:02:32]} 7. Be3 {[%clk 0:02:48]}  a6 {[%clk 0:02:27]} 8. N5c3 {[%clk 0:02:45]}  Nf6 {[%clk 0:02:27]} 9. Nd2 {[%clk 0:02:39]}  Be7 {[%clk 0:02:25]} 10. Nc4 {[%clk 0:02:31]}  O-O {[%clk 0:02:24]} 11. Bb6 {[%clk 0:02:23]}  Qd7 {[%clk 0:02:18]} 12. Be2 {[%clk 0:02:20]}  Nxe4 {[%clk 0:02:04]} 13. Nxe4 {[%clk 0:02:17]}  d5 {[%clk 0:02:04]} 14. Nc5 {[%clk 0:01:58]}  Bxc5 {[%clk 0:02:03]} 15. Bxc5 {[%clk 0:01:58]}  Re8 {[%clk 0:01:39]} 16. Nb6 {[%clk 0:01:54]}  Qf5 {[%clk 0:01:25]} 17. Nxa8 {[%clk 0:01:52]}  Nd4 {[%clk 0:01:14]} 18. Bd3 {[%clk 0:01:38]}  Qg5 {[%clk 0:01:06]} 19. Qd2 {[%clk 0:01:12]}  Qxg2 {[%clk 0:00:51]} 20. O-O-O {[%clk 0:01:12]}  Nf3 {[%clk 0:00:50]} 21. Qc3 {[%clk 0:00:58]}  Bg4 {[%clk 0:00:47]} 22. Nc7 {[%clk 0:00:56]}  Rc8 {[%clk 0:00:47]} 23. Nxd5 {[%clk 0:00:51]}  Nd4 {[%clk 0:00:22]} 24. Ne7+ {[%clk 0:00:46]}  Kh8 {[%clk 0:00:22]} 25. Nxc8 {[%clk 0:00:46]}  Bxd1 {[%clk 0:00:22]} 26. Bxd4 {[%clk 0:00:44]}  Qxh1 {[%clk 0:00:20]} 27. b3 {[%clk 0:00:38]}  exd4 {[%clk 0:00:16]} 28. Qxd4 {[%clk 0:00:38]}  Bf3+ {[%clk 0:00:11]} 29. Kb2 {[%clk 0:00:37]}  Bd5 {[%clk 0:00:05]} 30. Ne7 {[%clk 0:00:38]}  f6 {[%clk 0:00:02]} 31. Nxd5 {[%clk 0:00:36]}  Qf3 {[%clk 0:00:02]} 32. Nf4 {[%clk 0:00:34]}  g5 {[%clk 0:00:02]} 33. Qxf6+ {[%clk 0:00:33]}  Kg8 {[%clk 0:00:02]} 34. Bc4+ {[%clk 0:00:33]} 1-0


[Site "https://www.chess.com"]

[Event "Titled Tuesday Blitz May 10 Early 2022"]
[White "Panesar Vedant"]
[Black "Kamsky, Gata"]
[WhiteFideId "35033018"]
[BlackFideId "2000024"]
[WhiteElo "1975"]
[BlackElo "2645"]
[Result "0-1"]
[Round "10"]
[TimeControl "180+1"]
[Date "2022.05.10"]
[WhiteClock "0:00:07"]
[BlackClock "0:00:30"]

1. d4 {[%clk 0:03:00]}  d5 {[%clk 0:02:53]} 2. Nf3 {[%clk 0:03:00]}  Nf6 {[%clk 0:02:50]} 3. Bf4 {[%clk 0:03:00]}  c5 {[%clk 0:02:50]} 4. e3 {[%clk 0:03:01]}  Nc6 {[%clk 0:02:49]} 5. Nbd2 {[%clk 0:03:01]}  cxd4 {[%clk 0:02:48]} 6. exd4 {[%clk 0:03:02]}  Bg4 {[%clk 0:02:47]} 7. Bb5 {[%clk 0:02:59]}  e6 {[%clk 0:02:46]} 8. O-O {[%clk 0:02:53]}  Bd6 {[%clk 0:02:45]} 9. Bxd6 {[%clk 0:02:53]}  Qxd6 {[%clk 0:02:43]} 10. h3 {[%clk 0:02:53]}  Bxf3 {[%clk 0:02:39]} 11. Nxf3 {[%clk 0:02:54]}  O-O {[%clk 0:02:37]} 12. c3 {[%clk 0:02:54]}  a6 {[%clk 0:02:35]} 13. Bd3 {[%clk 0:02:53]}  b5 {[%clk 0:02:35]} 14. a3 {[%clk 0:02:48]}  Rab8 {[%clk 0:02:34]} 15. Qe2 {[%clk 0:02:43]}  Na5 {[%clk 0:02:23]} 16. a4 {[%clk 0:02:34]}  b4 {[%clk 0:02:01]} 17. Bxa6 {[%clk 0:01:14]}  bxc3 {[%clk 0:01:59]} 18. bxc3 {[%clk 0:01:15]}  Ne4 {[%clk 0:01:59]} 19. Bd3 {[%clk 0:01:15]}  Nxc3 {[%clk 0:01:57]} 20. Bxh7+ {[%clk 0:01:13]}  Kxh7 {[%clk 0:01:48]} 21. Ng5+ {[%clk 0:01:12]}  Kg6 {[%clk 0:01:46]} 22. Qd3+ {[%clk 0:01:08]}  Kxg5 {[%clk 0:01:41]} 23. Qxc3 {[%clk 0:01:07]}  Nc4 {[%clk 0:01:39]} 24. a5 {[%clk 0:01:07]}  Ra8 {[%clk 0:01:33]} 25. Rfe1 {[%clk 0:01:03]}  g6 {[%clk 0:01:30]} 26. h4+ {[%clk 0:00:58]}  Kh6 {[%clk 0:01:29]} 27. g3 {[%clk 0:00:53]}  Kg7 {[%clk 0:01:25]} 28. Kg2 {[%clk 0:00:46]}  Ra7 {[%clk 0:01:20]} 29. h5 {[%clk 0:00:44]}  gxh5 {[%clk 0:01:18]} 30. Rh1 {[%clk 0:00:43]}  Rh8 {[%clk 0:01:18]} 31. Qc1 {[%clk 0:00:34]}  Qe7 {[%clk 0:01:16]} 32. a6 {[%clk 0:00:33]}  Qf6 {[%clk 0:01:15]} 33. Qd1 {[%clk 0:00:30]}  Qf5 {[%clk 0:01:14]} 34. Rh4 {[%clk 0:00:24]}  Nd6 {[%clk 0:01:09]} 35. Ra3 {[%clk 0:00:23]}  Qg5 {[%clk 0:01:06]} 36. Qe2 {[%clk 0:00:18]}  Ne4 {[%clk 0:01:04]} 37. Rf3 {[%clk 0:00:17]}  Qd2 {[%clk 0:00:59]} 38. Rxe4 {[%clk 0:00:16]}  Qxe2 {[%clk 0:00:57]} 39. Rxe2 {[%clk 0:00:16]}  Rxa6 {[%clk 0:00:58]} 40. Rf4 {[%clk 0:00:15]}  Rh6 {[%clk 0:00:51]} 41. Re5 {[%clk 0:00:14]}  f6 {[%clk 0:00:49]} 42. Re2 {[%clk 0:00:14]}  Kg6 {[%clk 0:00:48]} 43. Rf3 {[%clk 0:00:13]}  h4 {[%clk 0:00:46]} 44. Rfe3 {[%clk 0:00:11]}  Kf7 {[%clk 0:00:45]} 45. Rc2 {[%clk 0:00:11]}  Ra7 {[%clk 0:00:41]} 46. Rc6 {[%clk 0:00:11]}  Re7 {[%clk 0:00:41]} 47. g4 {[%clk 0:00:11]}  Rh8 {[%clk 0:00:37]} 48. Kh3 {[%clk 0:00:11]}  Ra8 {[%clk 0:00:35]} 49. Kxh4 {[%clk 0:00:10]}  Ra2 {[%clk 0:00:34]} 50. Kg3 {[%clk 0:00:10]}  Rd2 {[%clk 0:00:34]} 51. Rf3 {[%clk 0:00:06]}  Rxd4 {[%clk 0:00:34]} 52. g5 {[%clk 0:00:06]}  f5 {[%clk 0:00:34]} 53. Kh2 {[%clk 0:00:04]}  Kg6 {[%clk 0:00:33]} 54. Rg3 {[%clk 0:00:05]}  Rh4+ {[%clk 0:00:32]} 55. Kg2 {[%clk 0:00:05]}  f4 {[%clk 0:00:32]} 56. Rd3 {[%clk 0:00:04]}  Kxg5 {[%clk 0:00:33]} 57. Rd6 {[%clk 0:00:04]}  Kf5 {[%clk 0:00:33]} 58. Ra6 {[%clk 0:00:04]}  Rg7+ {[%clk 0:00:33]} 59. Kf1 {[%clk 0:00:04]}  Rh1+ {[%clk 0:00:32]} 60. Ke2 {[%clk 0:00:05]}  Rb7 {[%clk 0:00:32]} 61. Rd2 {[%clk 0:00:05]}  Rb3 {[%clk 0:00:31]} 62. Rc2 {[%clk 0:00:04]}  f3+ {[%clk 0:00:30]} 63. Kd2 {[%clk 0:00:04]}  Rf1 {[%clk 0:00:30]} 64. Rc3 {[%clk 0:00:04]}  Rxf2+ {[%clk 0:00:29]} 65. Kd3 {[%clk 0:00:04]}  Rxc3+ {[%clk 0:00:29]} 66. Kxc3 {[%clk 0:00:05]}  Re2 {[%clk 0:00:30]} 67. Ra8 {[%clk 0:00:06]}  f2 {[%clk 0:00:30]} 68. Rf8+ {[%clk 0:00:07]}  Ke4 {[%clk 0:00:30]} 69. Rf6 {[%clk 0:00:06]}  e5 {[%clk 0:00:30]} 70. Rf8 {[%clk 0:00:07]}  Re3+ {[%clk 0:00:29]} 71. Kd2 {[%clk 0:00:07]}  Rf3 {[%clk 0:00:30]} 0-1


[Site "https://www.chess.com"]

[Event "Titled Tuesday Blitz May 10 Early 2022"]
[White "Petre, Nad-Titus"]
[Black "Shashikant, Kutwal"]
[WhiteFideId "1204165"]
[BlackFideId "5006520"]
[WhiteElo "2354"]
[BlackElo "2321"]
[Result "0-1"]
[Round "10"]
[TimeControl "180+1"]
[Date "2022.05.11"]
[WhiteClock "0:00:11"]
[BlackClock "0:00:05"]

1. e4 {[%clk 0:03:00]}  e5 {[%clk 0:03:00]} 2. Nf3 {[%clk 0:03:00]}  Nc6 {[%clk 0:03:00]} 3. d4 {[%clk 0:03:01]}  exd4 {[%clk 0:03:01]} 4. Nxd4 {[%clk 0:03:01]}  Nf6 {[%clk 0:03:01]} 5. Nxc6 {[%clk 0:03:01]}  bxc6 {[%clk 0:03:02]} 6. e5 {[%clk 0:03:01]}  Qe7 {[%clk 0:03:02]} 7. Qe2 {[%clk 0:03:02]}  Nd5 {[%clk 0:03:02]} 8. h4 {[%clk 0:03:02]}  a5 {[%clk 0:02:16]} 9. c4 {[%clk 0:02:58]}  Ba6 {[%clk 0:02:07]} 10. g3 {[%clk 0:02:56]}  f6 {[%clk 0:01:53]} 11. exf6 {[%clk 0:02:27]}  Nxf6 {[%clk 0:01:43]} 12. Bf4 {[%clk 0:02:23]}  Qxe2+ {[%clk 0:00:57]} 13. Bxe2 {[%clk 0:02:23]}  Bd6 {[%clk 0:00:51]} 14. Bxd6 {[%clk 0:02:01]}  cxd6 {[%clk 0:00:52]} 15. Nc3 {[%clk 0:02:01]}  Kd8 {[%clk 0:00:45]} 16. O-O-O {[%clk 0:02:00]}  Kc7 {[%clk 0:00:44]} 17. b3 {[%clk 0:01:55]}  Rhf8 {[%clk 0:00:42]} 18. f4 {[%clk 0:01:50]}  Rae8 {[%clk 0:00:41]} 19. Rhe1 {[%clk 0:01:46]}  Re3 {[%clk 0:00:38]} 20. Bd3 {[%clk 0:01:45]}  Rfe8 {[%clk 0:00:34]} 21. Rxe3 {[%clk 0:01:41]}  Rxe3 {[%clk 0:00:35]} 22. Ne2 {[%clk 0:01:41]}  d5 {[%clk 0:00:29]} 23. Kd2 {[%clk 0:01:26]}  Rf3 {[%clk 0:00:29]} 24. Rc1 {[%clk 0:01:14]}  dxc4 {[%clk 0:00:29]} 25. Bxc4 {[%clk 0:01:13]}  Ne4+ {[%clk 0:00:27]} 26. Ke1 {[%clk 0:01:11]}  Bxc4 {[%clk 0:00:26]} 27. Rxc4 {[%clk 0:01:12]}  Nxg3 {[%clk 0:00:27]} 28. Nd4 {[%clk 0:01:09]}  Rf1+ {[%clk 0:00:21]} 29. Kd2 {[%clk 0:01:09]}  Ne4+ {[%clk 0:00:16]} 30. Ke2 {[%clk 0:01:04]}  Rh1 {[%clk 0:00:16]} 31. Ke3 {[%clk 0:01:00]}  Nd6 {[%clk 0:00:14]} 32. Rc2 {[%clk 0:00:58]}  Rh3+ {[%clk 0:00:13]} 33. Nf3 {[%clk 0:00:54]}  Nf5+ {[%clk 0:00:09]} 34. Ke4 {[%clk 0:00:46]}  g6 {[%clk 0:00:05]} 35. Rc3 {[%clk 0:00:38]}  Kd6 {[%clk 0:00:03]} 36. Rd3+ {[%clk 0:00:37]}  Ke7 {[%clk 0:00:03]} 37. Rc3 {[%clk 0:00:34]}  d5+ {[%clk 0:00:02]} 38. Ke5 {[%clk 0:00:34]}  Nxh4 {[%clk 0:00:01]} 39. Rxc6 {[%clk 0:00:29]}  Nxf3+ {[%clk 0:00:01]} 40. Kxd5 {[%clk 0:00:28]}  Nh4 {[%clk 0:00:02]} 41. Rc7+ {[%clk 0:00:28]}  Kf6 {[%clk 0:00:02]} 42. Rxh7 {[%clk 0:00:29]}  Rh2 {[%clk 0:00:03]} 43. Kc6 {[%clk 0:00:28]}  Nf3 {[%clk 0:00:03]} 44. Rd7 {[%clk 0:00:26]}  Rc2+ {[%clk 0:00:02]} 45. Kb5 {[%clk 0:00:26]}  Rxa2 {[%clk 0:00:03]} 46. Rd5 {[%clk 0:00:26]}  Nd2 {[%clk 0:00:01]} 47. f5 {[%clk 0:00:23]}  gxf5 {[%clk 0:00:01]} 48. Rd6+ {[%clk 0:00:24]}  Ke5 {[%clk 0:00:01]} 49. Rh6 {[%clk 0:00:25]}  Ne4 {[%clk 0:00:02]} 50. Rh1 {[%clk 0:00:24]}  f4 {[%clk 0:00:02]} 51. Rh5+ {[%clk 0:00:24]}  Kd4 {[%clk 0:00:02]} 52. Rh8 {[%clk 0:00:24]}  Ke3 {[%clk 0:00:03]} 53. Rh3+ {[%clk 0:00:23]}  f3 {[%clk 0:00:04]} 54. b4 {[%clk 0:00:21]}  axb4 {[%clk 0:00:05]} 55. Kxb4 {[%clk 0:00:21]}  Ke2 {[%clk 0:00:06]} 56. Rh4 {[%clk 0:00:21]}  Ke3 {[%clk 0:00:05]} 57. Rh3 {[%clk 0:00:21]}  Ra8 {[%clk 0:00:06]} 58. Kc4 {[%clk 0:00:21]}  Rd8 {[%clk 0:00:07]} 59. Kb3 {[%clk 0:00:21]}  Nd2+ {[%clk 0:00:07]} 60. Kc2 {[%clk 0:00:21]}  Ke2 {[%clk 0:00:07]} 61. Rh7 {[%clk 0:00:21]}  f2 {[%clk 0:00:07]} 62. Re7+ {[%clk 0:00:21]}  Kf3 {[%clk 0:00:07]} 63. Rf7+ {[%clk 0:00:21]}  Ke3 {[%clk 0:00:07]} 64. Re7+ {[%clk 0:00:21]}  Kf3 {[%clk 0:00:07]} 65. Rf7+ {[%clk 0:00:22]}  Kg2 {[%clk 0:00:07]} 66. Rg7+ {[%clk 0:00:22]}  Kh3 {[%clk 0:00:07]} 67. Rh7+ {[%clk 0:00:22]}  Kg4 {[%clk 0:00:07]} 68. Rg7+ {[%clk 0:00:23]}  Kh5 {[%clk 0:00:08]} 69. Rg8 {[%clk 0:00:11]}  f1=Q {[%clk 0:00:07]} 70. Rxd8 {[%clk 0:00:11]}  Ne4 {[%clk 0:00:03]} 71. Rd5+ {[%clk 0:00:10]}  Kg4 {[%clk 0:00:02]} 72. Kb3 {[%clk 0:00:11]}  Kf4 {[%clk 0:00:03]} 73. Kb4 {[%clk 0:00:10]}  Qb1+ {[%clk 0:00:03]} 74. Kc4 {[%clk 0:00:10]}  Qc2+ {[%clk 0:00:03]} 75. Kb5 {[%clk 0:00:10]}  Qb3+ {[%clk 0:00:03]} 76. Kc6 {[%clk 0:00:11]}  Qc4+ {[%clk 0:00:03]} 77. Kb6 {[%clk 0:00:08]}  Qxd5 {[%clk 0:00:03]} 78. Ka7 {[%clk 0:00:09]}  Qc5+ {[%clk 0:00:04]} 79. Kb8 {[%clk 0:00:10]}  Qe7 {[%clk 0:00:04]} 80. Ka8 {[%clk 0:00:10]}  Nc5 {[%clk 0:00:05]} 81. Kb8 {[%clk 0:00:11]}  Qb7# {[%clk 0:00:05]} 0-1


[Site "https://www.chess.com"]